fUST/lending_fUST_20250507
["ID","MTS","AMOUNT","RATE_DAILY","PERIOD"]
[360101500,1746550243483,-459.42975202,0.00019178,2]
[360101502,1746550243493,-400.0,0.00019178,2]
[360101504,1746550243502,-402.76247651,0.00019178,2]
[360101506,1746550243512,-400.0,0.00019178,2]
[360101508,1746550243521,-400.0,0.00019178,2]
[360101510,1746550243531,-613.43,0.00019178,2]
[360101512,1746550243540,-400.0,0.00019178,2]
[360101514,1746550243549,-400.0,0.00019178,2]
[360101516,1746550243559,-1734.58,0.00019178,2]
[360101518,1746550243568,-400.0,0.00019178,2]
[360101520,1746550243577,-403.2886634,0.00019178,2]
[360101522,1746550243586,-469.63,0.00019178,2]
[360101524,1746550243596,-227.75999,0.00019178,2]
[360101526,1746550243605,-400.0,0.00019178,2]
[360101528,1746550243615,-400.0,0.00019178,2]
[360101530,1746550243625,-400.0,0.00019178,2]
[360101532,1746550243634,-510.74,0.00019178,2]
[360101534,1746550243644,-305.90250876,0.00019178,2]
[360101537,1746550243653,-400.0,0.00019178,2]
[360101539,1746550243663,-227.75999,0.00019178,2]
[360101541,1746550243672,-358.0,0.00019178,2]
[360101543,1746550243682,-1000.0,0.00019178,2]
[360101545,1746550243692,-400.0,0.00019178,2]
[360101547,1746550243701,-400.0,0.00019178,2]
[360101549,1746550243711,-400.0,0.00019178,2]
[360101551,1746550243721,-400.0,0.00019178,2]
[360101553,1746550243731,-402.82132138,0.00019178,2]
[360101555,1746550243740,-400.0,0.00019178,2]
[360101557,1746550243750,-500.0,0.00019178,2]
[360101559,1746550243760,-400.0,0.00019178,2]
[360101561,1746550243769,-784.26,0.00019178,2]
[360101563,1746550243779,-1684.37,0.00019178,2]
[360101565,1746550243791,-400.0,0.00019178,2]
[360101567,1746550243801,-565.81,0.00019178,2]
[360101569,1746550243810,-400.0,0.00019178,2]
[360101571,1746550243820,-400.0,0.00019178,2]
[360101573,1746550243831,-400.0,0.00019178,2]
[360101575,1746550243840,-500.84393885,0.00019178,2]
[360101577,1746550243849,-151.0,0.00019178,2]
[360101579,1746550243859,-291.15370518,0.00019178,2]
[360101581,1746550243870,-404.34239598,0.00019178,2]
[360101583,1746550243879,-400.0,0.00019178,2]
[360101585,1746550243888,-5870.74,0.00019178,2]
[360101587,1746550243898,-400.0,0.00019178,2]
[360101589,1746550243908,-400.0,0.00019178,2]
[360101591,1746550243918,-400.0,0.00019178,2]
[360101593,1746550243928,-400.0,0.00019178,2]
[360101595,1746550243938,-895.02,0.00019178,2]
[360101597,1746550243947,-400.0,0.00019178,2]
[360101599,1746550243957,-400.0,0.00019178,2]
[360101601,1746550243966,-400.0,0.00019178,2]
[360101603,1746550243975,-400.0,0.00019178,2]
[360101605,1746550243984,-400.0,0.00019178,2]
[360101607,1746550243994,-400.0,0.00019178,2]
[360101609,1746550244003,-400.0,0.00019178,2]
[360101611,1746550244013,-400.0,0.00019178,2]
[360101613,1746550244022,-400.0,0.00019178,2]
[360101615,1746550244031,-400.0,0.00019178,2]
[360101617,1746550244042,-151.0,0.00019178,2]
[360101619,1746550244052,-400.0,0.00019178,2]
[360101621,1746550244061,-400.0,0.00019178,2]
[360101623,1746550244070,-400.0,0.00019178,2]
[360101625,1746550244079,-401.22799411,0.00019178,2]
[360101627,1746550244089,-400.0,0.00019178,2]
[360101629,1746550244099,-400.0,0.00019178,2]
[360101631,1746550244109,-400.0,0.00019178,2]
[360101633,1746550244118,-401.69087347,0.00019178,2]
[360101635,1746550244127,-500.0,0.00019178,2]
[360101637,1746550244137,-400.0,0.00019178,2]
[360101639,1746550244147,-500.0,0.00019178,2]
[360101641,1746550244156,-500.0,0.00019178,2]
[360101643,1746550244166,-533.07018499,0.00019178,2]
[360101645,1746550244175,-460.53,0.00019178,2]
[360101647,1746550244184,-400.0,0.00019178,2]
[360101649,1746550244194,-400.0,0.00019178,2]
[360101651,1746550244203,-400.0,0.00019178,2]
[360101653,1746550244213,-400.0,0.00019178,2]
[360101655,1746550244222,-400.0,0.00019178,2]
[360101657,1746550244231,-400.0,0.00019178,2]
[360101659,1746550244241,-400.0,0.00019178,2]
[360101661,1746550244250,-400.0,0.00019178,2]
[360101663,1746550244260,-400.0,0.00019178,2]
[360101665,1746550244269,-400.0,0.00019178,2]
[360101667,1746550244278,-265.093591,0.00019178,2]
[360101669,1746550244287,-400.0,0.00019178,2]
[360101671,1746550244297,-400.0,0.00019178,2]
[360101673,1746550244306,-405.80884421,0.00019178,2]
[360101675,1746550244317,-400.0,0.00019178,2]
[360101677,1746550244326,-400.0,0.00019178,2]
[360101679,1746550244335,-1671.52,0.00019178,2]
[360101681,1746550244345,-400.0,0.00019178,2]
[360101683,1746550244354,-401.39677314,0.00019178,2]
[360101686,1746550244364,-400.0,0.00019178,2]
[360101688,1746550244373,-400.0,0.00019178,2]
[360101690,1746550244383,-400.0,0.00019178,2]
[360101692,1746550244393,-400.0,0.00019178,2]
[360101694,1746550244402,-563.37,0.00019178,2]
[360101696,1746550244411,-400.0,0.00019178,2]
[360101698,1746550244420,-401.30935804,0.00019178,2]
[360101700,1746550244429,-400.0,0.00019178,2]
[360101702,1746550244439,-451.51,0.00019178,2]
[360101704,1746550244448,-400.42065851,0.00019178,2]
[360101706,1746550244457,-840.75,0.00019178,2]
[360101708,1746550244466,-400.0,0.00019178,2]
[360101710,1746550244475,-400.0,0.00019178,2]
[360101712,1746550244484,-174.646678,0.00019178,2]
[360101714,1746550244494,-400.0,0.00019178,2]
[360101716,1746550244503,-400.0,0.00019178,2]
[360101718,1746550244512,-400.0,0.00019178,2]
[360101720,1746550244521,-400.0,0.00019178,2]
[360101722,1746550244530,-400.0,0.00019178,2]
[360101724,1746550244539,-400.0,0.00019178,2]
[360101726,1746550244549,-174.646678,0.00019178,2]
[360101728,1746550244558,-400.0,0.00019178,2]
[360101730,1746550244567,-400.0,0.00019178,2]
[360101732,1746550244576,-151.0,0.00019178,2]
[360101734,1746550244585,-779.44,0.00019178,2]
[360101736,1746550244595,-400.0,0.00019178,2]
[360101738,1746550244604,-400.0,0.00019178,2]
[360101740,1746550244613,-400.0,0.00019178,2]
[360101742,1746550244623,-400.0,0.00019178,2]
[360101744,1746550244632,-518.61,0.00019178,2]
[360101746,1746550244641,-418.11095225,0.00019178,2]
[360101748,1746550244650,-400.0,0.00019178,2]
[360101750,1746550244659,-327.56483332,0.00019178,2]
[360101752,1746550244669,-400.0,0.00019178,2]
[360101754,1746550244678,-400.0,0.00019178,2]
[360101756,1746550244687,-1515.05,0.00019178,2]
[360101758,1746550244695,-400.0,0.00019178,2]
[360101760,1746550244705,-400.0,0.00019178,2]
[360101762,1746550244714,-400.0,0.00019178,2]
[360101764,1746550244723,-400.0,0.00019178,2]
[360101766,1746550244732,-402.56655068,0.00019178,2]
[360101768,1746550244741,-400.0,0.00019178,2]
[360101770,1746550244750,-675.2,0.00019178,2]
[360101772,1746550244759,-400.0,0.00019178,2]
[360101774,1746550244768,-502.39141238,0.00019178,2]
[360101776,1746550244778,-553.59,0.00019178,2]
[360101778,1746550244788,-400.0,0.00019178,2]
[360101780,1746550244800,-400.0,0.00019178,2]
[360101782,1746550244809,-400.0,0.00019178,2]
[360101784,1746550244820,-2880.62,0.00019178,2]
[360101786,1746550244829,-400.0,0.00019178,2]
[360101788,1746550244839,-267.4974309,0.00019178,2]
[360101790,1746550244848,-400.0,0.00019178,2]
[360101792,1746550244858,-400.0,0.00019178,2]
[360101794,1746550244868,-400.0,0.00019178,2]
[360101796,1746550244878,-400.0,0.00019178,2]
[360101798,1746550244887,-400.0,0.00019178,2]
[360101801,1746550244896,-436.53221498,0.00019178,2]
[360101803,1746550244906,-569.36,0.00019178,2]
[360101805,1746550244915,-400.0,0.00019178,2]
[360101807,1746550244924,-151.0,0.00019178,2]
[360101809,1746550244933,-400.0,0.00019178,2]
[360101811,1746550244942,-400.0,0.00019178,2]
[360101813,1746550244951,-1423.51,0.00019178,2]
[360101815,1746550244960,-400.0,0.00019178,2]
[360101817,1746550244969,-400.0,0.00019178,2]
[360101819,1746550244979,-250.28177358,0.00019178,2]
[360101821,1746550244988,-400.0,0.00019178,2]
[360101823,1746550244998,-400.0,0.00019178,2]
[360101825,1746550245008,-400.0,0.00019178,2]
[360101827,1746550245017,-400.0,0.00019178,2]
[360101829,1746550245026,-400.0,0.00019178,2]
[360101831,1746550245036,-400.0,0.00019178,2]
[360101833,1746550245045,-400.0,0.00019178,2]
[360101835,1746550245054,-520.09874239,0.00019178,2]
[360101837,1746550245063,-400.0,0.00019178,2]
[360101839,1746550245072,-400.0,0.00019178,2]
[360101841,1746550245081,-400.0,0.00019178,2]
[360101843,1746550245091,-514.78859153,0.00019178,2]
[360101845,1746550245101,-1000.0,0.00019178,2]
[360101847,1746550245111,-400.0,0.00019178,2]
[360101849,1746550245121,-3008.22,0.00019178,2]
[360101851,1746550245130,-611.24,0.00019178,2]
[360101853,1746550245139,-400.0,0.00019178,2]
[360101855,1746550245148,-408.25050653,0.00019178,2]
[360101857,1746550245157,-741.85,0.00019178,2]
[360101859,1746550245167,-741.85,0.00019178,2]
[360101861,1746550245175,-741.85,0.00019178,2]
[360101862,1746550245184,-741.85,0.00019178,2]
[360101863,1746550245194,-401.14486658,0.00019178,2]
[360101864,1746550245203,-400.0,0.00019178,2]
[360101865,1746550245212,-741.85,0.00019178,2]
[360101866,1746550245221,-741.85,0.00019178,2]
[360101867,1746550245230,-741.85,0.00019178,2]
[360101868,1746550245239,-741.85,0.00019178,2]
[360101869,1746550245248,-400.0,0.00019178,2]
[360101870,1746550245257,-741.85,0.00019178,2]
[360101871,1746550245266,-5675.74,0.00019178,2]
[360101872,1746550245276,-741.85,0.00019178,2]
[360101873,1746550245284,-741.85,0.00019178,2]
[360101874,1746550245293,-400.0,0.00019178,2]
[360101875,1746550245303,-741.85,0.00019178,2]
[360101876,1746550245311,-741.85,0.00019178,2]
[360101877,1746550245321,-741.85,0.00019178,2]
[360101879,1746550245331,-741.85,0.00019178,2]
[360101881,1746550245340,-741.85,0.00019178,2]
[360101883,1746550245350,-741.85,0.00019178,2]
[360101885,1746550245359,-741.85,0.00019178,2]
[360101888,1746550245368,-741.85,0.00019178,2]
[360101890,1746550245377,-741.85,0.00019178,2]
[360101892,1746550245387,-741.85,0.00019178,2]
[360101894,1746550245395,-689.89,0.00019178,2]
[360101896,1746550245404,-741.85,0.00019178,2]
[360101898,1746550245413,-400.0,0.00019178,2]
[360101900,1746550245422,-741.85,0.00019178,2]
[360101902,1746550245431,-741.99484471,0.00019178,2]
[360101904,1746550245440,-400.0,0.00019178,2]
[360101906,1746550245449,-400.84686798,0.00019178,2]
[360101908,1746550245457,-1103.28,0.00019178,2]
[360101910,1746550245467,-400.0,0.00019178,2]
[360101912,1746550245475,-400.0,0.00019178,2]
[360101914,1746550245484,-2621.11,0.00019178,2]
[360101916,1746550245494,-692.67,0.00019178,2]
[360101918,1746550245503,-400.0,0.00019178,2]
[360101919,1746550245512,-400.0,0.00019178,2]
[360101921,1746550245521,-400.0,0.00019178,2]
[360101923,1746550245530,-1695.78,0.00019178,2]
[360101925,1746550245539,-500.0,0.00019178,2]
[360101927,1746550245548,-500.0,0.00019178,2]
[360101929,1746550245557,-400.0,0.00019178,2]
[360101931,1746550245566,-400.0,0.00019178,2]
[360101933,1746550245575,-400.0,0.00019178,2]
[360101935,1746550245584,-400.0,0.00019178,2]
[360101938,1746550245593,-1102.09,0.00019178,2]
[360101939,1746550245602,-400.0,0.00019178,2]
[360101941,1746550245611,-400.0,0.00019178,2]
[360101943,1746550245620,-500.0,0.00019178,2]
[360101946,1746550245630,-451.19,0.00019178,2]
[360101948,1746550245639,-314.86694994,0.00019178,2]
[360101950,1746550245648,-400.0,0.00019178,2]
[360101952,1746550245657,-400.0,0.00019178,2]
[360101966,1746550245778,-433.78,0.00019178,2]
[360101968,1746550245788,-400.0,0.00019178,2]
[360101970,1746550245800,-400.0,0.00019178,2]
[360101972,1746550245809,-400.0,0.00019178,2]
[360101974,1746550245818,-2143.33,0.00019178,2]
[360101976,1746550245828,-176.15756633,0.00019178,2]
[360101978,1746550245839,-400.0,0.00019178,2]
[360101980,1746550245848,-808.49,0.00019178,2]
[360101982,1746550245857,-151.0,0.00019178,2]
[360101984,1746550245870,-506.24899933,0.00019178,2]
[360101986,1746550245880,-332.90977984,0.00019178,2]
[360101988,1746550245890,-400.0,0.00019178,2]
[360101990,1746550245899,-500.0,0.00019178,2]
[360101992,1746550245909,-400.0,0.00019178,2]
[360101994,1746550245918,-400.0,0.00019178,2]
[360101996,1746550245928,-400.0,0.00019178,2]
[360101998,1746550245938,-400.0,0.00019178,2]
[360102000,1746550245947,-151.0,0.00019178,2]
[360102002,1746550245956,-4275.0,0.00019178,2]
[360102004,1746550245966,-217.8951033,0.00019178,2]
[360102006,1746550245975,-400.0,0.00019178,2]
[360102008,1746550245984,-400.0,0.00019178,2]
[360102010,1746550245994,-404.44071544,0.00019178,2]
[360102012,1746550246003,-2451.0,0.00019178,2]
[360102014,1746550246012,-400.0,0.00019178,2]
[360102016,1746550246021,-400.0,0.00019178,2]
[360102018,1746550246031,-400.0,0.00019178,2]
[360102020,1746550246040,-400.0,0.00019178,2]
[360102022,1746550246050,-509.59,0.00019178,2]
[360102024,1746550246059,-400.0,0.00019178,2]
[360102026,1746550246069,-400.0,0.00019178,2]
[360102028,1746550246079,-1234.29,0.00019178,2]
[360102030,1746550246088,-505.38791715,0.00019178,2]
[360102032,1746550246100,-400.0,0.00019178,2]
[360102034,1746550246110,-400.0,0.00019178,2]
[360102036,1746550246119,-400.0,0.00019178,2]
[360102038,1746550246128,-639.99,0.00019178,2]
[360102040,1746550246137,-408.95706626,0.00019178,2]
[360102042,1746550246146,-400.0,0.00019178,2]
[360102044,1746550246156,-400.0,0.00019178,2]
[360102046,1746550246166,-593.48,0.00019178,2]
[360102048,1746550246175,-151.0,0.00019178,2]
[360102050,1746550246184,-1324.45,0.00019178,2]
[360102052,1746550246194,-400.0,0.00019178,2]
[360102054,1746550246203,-400.0,0.00019178,2]
[360102056,1746550246212,-400.0,0.00019178,2]
[360102058,1746550246222,-1965.93,0.00019178,2]
[360102060,1746550246231,-400.0,0.00019178,2]
[360102062,1746550246241,-403.64686653,0.00019178,2]
[360102064,1746550246250,-400.0,0.00019178,2]
[360102066,1746550246259,-1175.32,0.00019178,2]
[360102068,1746550246268,-400.0,0.00019178,2]
[360102070,1746550246277,-666.84,0.00019178,2]
[360102072,1746550246286,-400.0,0.00019178,2]
[360102074,1746550246295,-400.86104084,0.00019178,2]
[360102076,1746550246304,-400.0,0.00019178,2]
[360102078,1746550246314,-400.0,0.00019178,2]
[360102080,1746550246324,-400.0,0.00019178,2]
[360102081,1746550246333,-1713.68,0.00019178,2]
[360102084,1746550246343,-400.0,0.00019178,2]
[360102086,1746550246353,-400.0,0.00019178,2]
[360102088,1746550246362,-400.0,0.00019178,2]
[360102090,1746550246371,-360.81304676,0.00019178,2]
[360102092,1746550246381,-400.0,0.00019178,2]
[360102094,1746550246390,-2394.23,0.00019178,2]
[360102096,1746550246399,-400.0,0.00019178,2]
[360102098,1746550246409,-151.0,0.00019178,2]
[360102100,1746550246418,-401.53584369,0.00019178,2]
[360102102,1746550246429,-404.18475722,0.00019178,2]
[360102104,1746550246439,-400.0,0.00019178,2]
[360102106,1746550246448,-561.19,0.00019178,2]
[360102108,1746550246457,-551.09,0.00019178,2]
[360102110,1746550246467,-679.47,0.00019178,2]
[360102112,1746550246476,-753.36,0.00019178,2]
[360102114,1746550246485,-400.0,0.00019178,2]
[360102116,1746550246495,-403.83784036,0.00019178,2]
[360102118,1746550246504,-400.0,0.00019178,2]
[360102120,1746550246513,-151.0,0.00019178,2]
[360102122,1746550246523,-400.0,0.00019178,2]
[360102124,1746550246533,-401.0693151,0.00019178,2]
[360102126,1746550246542,-400.0,0.00019178,2]
[360102128,1746550246552,-400.0,0.00019178,2]
[360102130,1746550246561,-438.48,0.00019178,2]
[360102132,1746550246570,-405.32755235,0.00019178,2]
[360102134,1746550246580,-400.0,0.00019178,2]
[360102136,1746550246590,-400.0,0.00019178,2]
[360102138,1746550246599,-1762.42,0.00019178,2]
[360102141,1746550246609,-400.0,0.00019178,2]
[360102143,1746550246619,-401.67160681,0.00019178,2]
[360102145,1746550246628,-400.0,0.00019178,2]
[360102147,1746550246637,-186.25005525,0.00019178,2]
[360102149,1746550246646,-435.44,0.00019178,2]
[360102151,1746550246656,-401.58873496,0.00019178,2]
[360102153,1746550246665,-400.0,0.00019178,2]
[360102155,1746550246675,-151.0,0.00019178,2]
[360102157,1746550246685,-400.0,0.00019178,2]
[360102159,1746550246695,-400.0,0.00019178,2]
[360102161,1746550246704,-400.0,0.00019178,2]
[360102163,1746550246713,-400.0,0.00019178,2]
[360102165,1746550246722,-400.0,0.00019178,2]
[360102166,1746550246732,-1988.55,0.00019178,2]
[360102169,1746550246742,-778.7,0.00019178,2]
[360102170,1746550246752,-3995.95,0.00019178,2]
[360102172,1746550246762,-402.77803583,0.00019178,2]
[360102174,1746550246772,-400.0,0.00019178,2]
[360102176,1746550246781,-647.42,0.00019178,2]
[360102178,1746550246795,-409.61226827,0.00019178,2]
[360102179,1746550246805,-400.0,0.00019178,2]
[360102181,1746550246814,-735.24,0.00019178,2]
[360102183,1746550246825,-400.0,0.00019178,2]
[360102185,1746550246835,-400.0,0.00019178,2]
[360102187,1746550246845,-657.42,0.00019178,2]
[360102188,1746550246854,-400.0,0.00019178,2]
[360102190,1746550246864,-400.0,0.00019178,2]
[360102192,1746550246875,-460.40549829,0.00019178,2]
[360102194,1746550246885,-400.0,0.00019178,2]
[360102195,1746550246895,-400.0,0.00019178,2]
[360102197,1746550246904,-402.9905216,0.00019178,2]
[360102199,1746550246914,-400.0,0.00019178,2]
[360102201,1746550246923,-400.0,0.00019178,2]
[360102203,1746550246933,-400.0,0.00019178,2]
[360102204,1746550246943,-506.65,0.00019178,2]
[360102206,1746550246952,-400.0,0.00019178,2]
[360102208,1746550246962,-400.0,0.00019178,2]
[360102210,1746550246971,-1815.93,0.00019178,2]
[360102211,1746550246981,-532.07,0.00019178,2]
[360102213,1746550246990,-400.0,0.00019178,2]
[360102215,1746550246999,-400.0,0.00019178,2]
[360102216,1746550247009,-400.0,0.00019178,2]
[360102218,1746550247018,-400.0,0.00019178,2]
[360102220,1746550247028,-400.0,0.00019178,2]
[360102222,1746550247038,-1456.25,0.00019178,2]
[360102223,1746550247048,-400.0,0.00019178,2]
[360102225,1746550247057,-1324.47,0.00019178,2]
[360102227,1746550247067,-400.0,0.00019178,2]
[360102229,1746550247076,-1324.47,0.00019178,2]
[360102230,1746550247086,-1324.47,0.00019178,2]
[360102232,1746550247098,-1324.47,0.00019178,2]
[360102234,1746550247108,-1324.47,0.00019178,2]
[360102236,1746550247117,-1324.47,0.00019178,2]
[360102238,1746550247127,-1324.47,0.00019178,2]
[360102239,1746550247137,-1324.47,0.00019178,2]
[360102241,1746550247146,-1324.47,0.00019178,2]
[360102243,1746550247155,-1324.47,0.00019178,2]
[360102244,1746550247165,-400.0,0.00019178,2]
[360102246,1746550247174,-1324.47,0.00019178,2]
[360102248,1746550247184,-1324.47,0.00019178,2]
[360102250,1746550247193,-1324.47,0.00019178,2]
[360102252,1746550247203,-1324.47,0.00019178,2]
[360102253,1746550247212,-1324.47,0.00019178,2]
[360102255,1746550247222,-431.81714596,0.00019178,2]
[360102257,1746550247231,-1324.47,0.00019178,2]
[360102259,1746550247240,-1324.47,0.00019178,2]
[360102260,1746550247250,-1324.47,0.00019178,2]
[360102262,1746550247260,-1324.47,0.00019178,2]
[360102264,1746550247270,-1324.47,0.00019178,2]
[360102266,1746550247279,-781.9,0.00019178,2]
[360102268,1746550247288,-1324.47,0.00019178,2]
[360102270,1746550247297,-400.0,0.00019178,2]
[360102271,1746550247307,-1324.47,0.00019178,2]
[360102273,1746550247317,-7534.29,0.00019178,2]
[360102275,1746550247326,-400.0,0.00019178,2]
[360102277,1746550247336,-1324.47,0.00019178,2]
[360102279,1746550247345,-417.87,0.00019178,2]
[360102281,1746550247354,-1324.53327311,0.00019178,2]
[360102282,1746550247363,-400.0,0.00019178,2]
[360102284,1746550247373,-402.47607156,0.00019178,2]
[360102286,1746550247382,-897.74,0.00019178,2]
[360102288,1746550247392,-400.0,0.00019178,2]
[360102290,1746550247401,-422.8,0.00019178,2]
[360102292,1746550247411,-220.53743959,0.00019178,2]
[360102293,1746550247420,-400.0,0.00019178,2]
[360102295,1746550247430,-513.7459558,0.00019178,2]
[360102297,1746550247440,-3687.73,0.00019178,2]
[360102299,1746550247449,-537.46,0.00019178,2]
[360102301,1746550247459,-283.18379737,0.00019178,2]
[360102303,1746550247468,-400.0,0.00019178,2]
[360102305,1746550247477,-400.0,0.00019178,2]
[360102306,1746550247486,-403.14127598,0.00019178,2]
[360102308,1746550247498,-400.0,0.00019178,2]
[360102310,1746550247507,-400.0,0.00019178,2]
[360102312,1746550247517,-405.8713486,0.00019178,2]
[360102314,1746550247527,-400.0,0.00019178,2]
[360102316,1746550247536,-9056.13,0.00019178,2]
[360102318,1746550247545,-400.0,0.00019178,2]
[360102320,1746550247554,-400.0,0.00019178,2]
[360102321,1746550247564,-206.0059834,0.00019178,2]
[360102323,1746550247574,-400.0,0.00019178,2]
[360102325,1746550247584,-1311.27,0.00019178,2]
[360102327,1746550247593,-400.0,0.00019178,2]
[360102329,1746550247603,-400.0,0.00019178,2]
[360102331,1746550247613,-409.14060265,0.00019178,2]
[360102333,1746550247622,-400.0,0.00019178,2]
[360102334,1746550247632,-400.0,0.00019178,2]
[360102336,1746550247641,-495.61,0.00019178,2]
[360102338,1746550247651,-400.0,0.00019178,2]
[360102340,1746550247660,-400.0,0.00019178,2]
[360102342,1746550247670,-400.0,0.00019178,2]
[360102344,1746550247679,-400.0,0.00019178,2]
[360102345,1746550247688,-2508.4,0.00019178,2]
[360102347,1746550247698,-1296.12,0.00019178,2]
[360102349,1746550247708,-400.0,0.00019178,2]
[360102351,1746550247719,-3107.34,0.00019178,2]
[360102353,1746550247728,-19307.99,0.00019178,2]
[360102355,1746550247737,-1064.58,0.00019178,2]
[360102357,1746550247747,-400.0,0.00019178,2]
[360102358,1746550247756,-400.0,0.00019178,2]
[360102360,1746550247765,-400.0,0.00019178,2]
[360102362,1746550247774,-400.0,0.00019178,2]
[360102364,1746550247783,-1755.77,0.00019178,2]
[360102366,1746550247795,-400.0,0.00019178,2]
[360102368,1746550247805,-896.18,0.00019178,2]
[360102370,1746550247815,-402.91911364,0.00019178,2]
[360102371,1746550247824,-2816.34,0.00019178,2]
[360102373,1746550247833,-400.0,0.00019178,2]
[360102385,1746550247957,-841.77,0.00019178,2]
[360102387,1746550247967,-400.0,0.00019178,2]
[360102389,1746550247976,-428.69,0.00019178,2]
[360102391,1746550247986,-151.0,0.00019178,2]
[360102393,1746550247995,-8873.46,0.00019178,2]
[360102395,1746550248004,-400.0,0.00019178,2]
[360102396,1746550248013,-400.0,0.00019178,2]
[360102398,1746550248023,-613.87,0.00019178,2]
[360102400,1746550248032,-400.0,0.00019178,2]
[360102402,1746550248041,-400.0,0.00019178,2]
[360102404,1746550248051,-400.0,0.00019178,2]
[360102406,1746550248060,-400.0,0.00019178,2]
[360102407,1746550248070,-1367.64,0.00019178,2]
[360102409,1746550248081,-400.0,0.00019178,2]
[360102411,1746550248091,-400.0,0.00019178,2]
[360102413,1746550248100,-401.01869542,0.00019178,2]
[360102415,1746550248110,-402.10659483,0.00019178,2]
[360102417,1746550248120,-400.0,0.00019178,2]
[360102418,1746550248129,-442.77,0.00019178,2]
[360102420,1746550248139,-400.0,0.00019178,2]
[360102422,1746550248148,-403.34010556,0.00019178,2]
[360102424,1746550248158,-400.0,0.00019178,2]
[360102426,1746550248170,-400.0,0.00019178,2]
[360102428,1746550248179,-400.0,0.00019178,2]
[360102429,1746550248188,-400.0,0.00019178,2]
[360102431,1746550248198,-400.0,0.00019178,2]
[360102433,1746550248207,-400.0,0.00019178,2]
[360102435,1746550248219,-400.0,0.00019178,2]
[360102437,1746550248228,-2573.72,0.00019178,2]
[360102439,1746550248237,-427.19,0.00019178,2]
[360102441,1746550248247,-400.0,0.00019178,2]
[360102442,1746550248257,-151.0,0.00019178,2]
[360102444,1746550248266,-1466.55,0.00019178,2]
[360102446,1746550248276,-3620.9,0.00019178,2]
[360102448,1746550248285,-406.79252526,0.00019178,2]
[360102450,1746550248294,-265.84274164,0.00019178,2]
[360102452,1746550248304,-400.0,0.00019178,2]
[360102454,1746550248314,-400.0,0.00019178,2]
[360102455,1746550248323,-400.0,0.00019178,2]
[360102457,1746550248334,-698.58,0.00019178,2]
[360102459,1746550248343,-640.19,0.00019178,2]
[360102461,1746550248352,-400.0,0.00019178,2]
[360102463,1746550248362,-400.0,0.00019178,2]
[360102465,1746550248371,-1499.83,0.00019178,2]
[360102466,1746550248380,-400.0,0.00019178,2]
[360102468,1746550248390,-151.0,0.00019178,2]
[360102470,1746550248399,-709.483782,0.00019178,2]
[360102472,1746550248408,-372.762009,0.00019178,2]
[360102474,1746550248418,-372.762009,0.00019178,2]
[360102476,1746550248427,-1000.0,0.00019178,2]
[360102477,1746550248436,-300.0,0.00019178,2]
[360102479,1746550248445,-160.0,0.000192,2]